Cogmind - Beta 16.1 @@@ ROGUE MODE // 2026.03.21 @ 18:57:29 Player: Ez Result: Destroyed by G-47 Trooper with Particle Gun Performance ------------- Evolutions (2) 1000 Regions Visited (3) 600 Robots Destroyed (50) 250 Value Destroyed (1323) 1323 Prototype IDs (2) 40 Alien Tech Used (0) 0 Bonus (0) 0 TOTAL SCORE: 3213 Bonus ------- None Cogmind --------- Core Integrity 0/550 Matter 275/300 Energy 87/100 System Corruption 5% Temperature Cool (9) Movement Walking (120) Location -8/Materials Parts ------- > --- POWER (1) -------- (None) > --- PROPULSION (4) --- Light Treads Aluminum Leg Aluminum Leg Aluminum Leg > --- UTILITY (4) ------ (None) > --- WEAPON (2) ------- Katana > --- INVENTORY (5) ---- Light Treads Improved Flight Unit Structural Scanner Improved Signal Interpreter Gauss Rifle Peak State ------------ > --- POWER ------------ Light Deuterium Engine > --- PROPULSION ------- Light Treads Armored Treads Armored Treads Armored Treads > --- UTILITY ---------- Heat Sink Improved Heat Sink Large Storage Unit > --- WEAPON ----------- Beam Rifle Katana > --- INVENTORY -------- Light Treads Improved Flight Unit Improved Flight Unit Improved Flight Unit Improved Flight Unit Structural Scanner Improved Signal Interpreter Assault Rifle Katana [Rating: 25] Favorites ----------- Power Ion Engine Engine Ion Engine Power Core Light Nuclear Core Propulsion Light Treads Treads Light Treads Leg Aluminum Leg Utility Large Storage Unit Device Heat Sink Storage Large Storage Unit Protection Light Armor Plating Weapon Flail Energy Gun EM Pulse Gun Ballistic Gun Assault Rifle Launcher Mini Grenade Launcher Impact Weapon Flail Slashing Weapon Katana Build | -11 -10 -9 -8 ------- Run | Yrd Mat Mat Mat Slots Evolved 4 | . . 2 2 Power . | . . . . Propulsion 2 | . . 1 1 Utility 2 | . . 1 1 Weapon . | . . . . Parts Attached 50 | 5 12 14 19 Power 8 | 1 1 3 3 Engine 7 | 1 1 3 2 Core 1 | . . . 1 Reactor . | . . . . Propulsion 20 | 2 1 7 10 Treads 11 | 2 . 3 6 Leg 9 | . 1 4 4 Wheel . | . . . . Hover . | . . . . Flight . | . . . . Utility 10 | . 6 2 2 Device 2 | . . . 2 Storage 4 | . 2 2 . Processor . | . . . . Hackware . | . . . . Protection 4 | . 4 . . Artifact . | . . . . Weapon 12 | 2 4 2 4 Energy Gun 3 | 2 . . 1 Energy Cannon . | . . . . Ballistic Gun 2 | . 1 1 . Ballistic Cannon . | . . . . Launcher 2 | . 1 1 . Special Weapon . | . . . . Impact Weapon 2 | . 2 . . Slashing Weapon 3 | . . . 3 Piercing Weapon . | . . . . Special Melee Weapon . | . . . . Unidentified Prototypes 2 | . . 2 . Parts Lost 34 | . 6 7 21 Power 7 | . 1 2 4 Propulsion 14 | . 2 3 9 Utility 8 | . 2 2 4 Weapon 5 | . 1 . 4 Highest Loss Streak 7 | . 3 4 7 To Critical Strikes 1 | . . . 1 Average Backups 4 | . 2 4 8 Power . | . . . . Propulsion 2 | . . 2 4 Utility . | . . . 1 Weapon 1 | . 1 1 2 Tool/Special . | . . . . Unused Backups 12 | . 1 3 8 Power 2 | . . 1 1 Propulsion 6 | . . 2 4 Utility 3 | . 1 . 2 Weapon 1 | . . . 1 Tool/Special . | . . . . Average Slot Usage (%) 65 | . 64 65 63 Engine 10 | . 14 10 7 Treads 11 | . 11 8 15 Leg 8 | . 1 10 11 Storage 5 | . . 7 8 Protection 6 | . 10 5 1 Energy Gun 3 | . 9 . 2 Ballistic Gun 5 | . 5 9 . Launcher 1 | . . 1 3 Impact Weapon 8 | . 11 11 . Slashing Weapon 1 | . . . 8 Peak Build Rating 25 | 5 10 13 25 Average Rating 8 | 3 5 8 15 On Entrance 6 | . 5 6 13 Avg Prop Armor Cover (%) 17 | . . . 17 Naked Turns 3 | . 3 . . Heaviest Build 32 | 9 29 29 32 Greatest Support 80 | 40 40 60 80 Greatest Overweight (x) 9 | 1 4 9 8 Average Overweight (x) . | . 1 . . Largest Inventory Capacity 15 | 5 15 15 15 Average Capacity 10 | 5 5 11 14 Most Carried 12 | 1 5 8 12 Average Carried 4 | . 2 4 8 Final Capacity 15 | 5 5 15 5 Final Carried 8 | 1 2 8 5 Class Distribution -------------------- 94% | Mutant 5% | Scavenger-Mutant Dominant Class ---------------- Mutant | -10/Materials Mutant | -9/Materials Mutant | -8/Materials Resources | -11 -10 -9 -8 ----------- Run | Yrd Mat Mat Mat Matter Collected 874 | 97 288 274 215 Remotely . | . . . . Salvage Created 1675 | . 433 577 665 Parts 91 | . 23 33 35 Haulers Intercepted 4 | . 1 3 . Recyclers Shooed 4 | . 2 . 2 Parts Field Recycled . | . . . . Retrieved Matter . | . . . . Parts Self-Destructed . | . . . . Prevented . | . . . . Parts Restored . | . . . . Kills | -11 -10 -9 -8 ------- Run | Yrd Mat Mat Mat Combat Hostiles Destroyed 41 | . 14 15 12 Melee 15 | . 2 4 9 Guns 17 | . 5 9 3 AOE 4 | . 4 . . Classes Destroyed 9 | . 6 1 2 Builder 3 | . 2 . 1 Hauler 4 | . 1 3 . Recycler 1 | . 1 . . Operator 1 | . 1 . . Swarmer 15 | . 8 7 . Grunt 17 | . 6 6 5 Brawler 1 | . . . 1 Sentry 6 | . . 2 4 Hunter 2 | . . . 2 Best Kill Streak 7 | . 5 7 2 Combat Bots Only 7 | . 4 7 2 Max Kills in Single Turn 5 | . 5 1 1 Gunslinging . | . . . . Exploded 4 | . 4 . . Melee 1 | . 1 1 1 Uniques/NPCs Destroyed . | . . . . Combat | -11 -10 -9 -8 -------- Run | Yrd Mat Mat Mat Hostile Shots Fired 551 | . 141 154 256 Missed 143 | . 35 42 66 Hits 408 | . 106 112 190 Melee 5 | . . . 5 Projectile 403 | . 106 112 185 Critical Strikes 19 | . . 3 16 Damage Taken 5370 | . 968 1371 3031 Core 891 | . 129 203 559 Absorbed by Shields . | . . . . Core Remaining (%) 65 | 100 48 49 . Volleys Fired 116 | . 30 70 16 Largest 1 | . 1 1 1 Hottest 56 | . 40 30 56 Shots Fired 116 | . 30 70 16 Gun 107 | . 28 63 16 Cannon . | . . . . Launcher 9 | . 2 7 . Special . | . . . . Kinetic 63 | . . 63 . Thermal 16 | . . . 16 Explosive 9 | . 2 7 . Electromagnetic 28 | . 28 . . Robot Hit Streak 11 | . 11 7 11 Robot Miss Streak 3 | . 2 3 1 Penetration Max . | . . . . Secondary Targets . | . . . . Shots Hit Robots 156 | . 40 61 55 Core Hits 62 | . 19 25 18 Critical Kills 3 | . 1 2 . Critical Parts Destroyed 6 | . 3 3 . Critical Strikes 16 | . 4 6 6 Burn 1 | . . . 1 Destroy 1 | . . 1 . Smash 9 | . 4 5 . Sever 5 | . . . 5 Melee Attacks 170 | . 36 62 72 Impact 98 | . 36 62 . Slashing 72 | . . . 72 Piercing . | . . . . Sneak Attacks 6 | . 4 . 2 Combat Hostiles . | . . . . Follow-up Attacks . | . . . . Damage Inflicted 4084 | . 1339 1172 1573 Guns 986 | . 303 477 206 Cannons . | . . . . Explosions 355 | . 341 14 . Melee 2743 | . 695 681 1367 Ramming . | . . . . Kinetic 477 | . . 477 . Thermal 240 | . 34 . 206 Explosive 321 | . 307 14 . Electromagnetic 303 | . 303 . . Impact 1376 | . 695 681 . Slashing 1367 | . . . 1367 Piercing . | . . . . Highest Corruption 5 | . . . 5 Average Corruption 4 | . . . 4 Corruption Purged . | . . . . Corruption Blocked . | . . . . Effects 6 | . . . 6 Message Errors 3 | . . . 3 Matter Fused 1 | . . . 1 Energy Discharges 1 | . . . 1 Data Loss (minor) 1 | . . . 1 Overload Shots . | . . . . Overflow Damage 430 | . 250 72 108 Projectiles . | . . . . Explosions 4 | . 4 . . Melee 426 | . 246 72 108 Knockbacks 2 | . 2 . . Impact 2 | . 2 . . Kinetic . | . . . . Secondary . | . . . . Self-Inflicted Damage 119 | . 67 52 . Shots 3 | . 2 1 . Rammed 1 | . 1 . . Targets Rammed 1 | . 1 . . Kicked . | . . . . Crushed . | . . . . Highest Temperature 54 | . 54 10 20 Average Temperature 14 | . 20 4 5 Received Heat Transfer 1944 | . 96 561 1287 Siege Activations . | . . . . Martial Activations . | . . . . Shielding Activations . | . . . . Robots Disrupted . | . . . . Combat Hostiles . | . . . . Robots Corrupted 5 | . 3 2 . Combat Hostiles 5 | . 3 2 . Parts Fried 10 | . 8 2 . Impact Corruptions 17 | . 12 5 . Robots Melted . | . . . . Combat Hostiles . | . . . . Parts Melted . | . . . . Heat Transferred 642 | . 50 . 592 Parts Sabotaged . | . . . . Parts Stolen . | . . . . Parts Stripped . | . . . . Power Chain Reactions 1 | . 1 . . Alert | -11 -10 -9 -8 ------- Run | Yrd Mat Mat Mat Maximum Alert Level . | . . . . Low Security (%) 100 | 100 100 100 100 Level 1 . | . . . . Level 2 . | . . . . Level 3 . | . . . . Level 4 . | . . . . Level 5 . | . . . . High Security . | . . . . Max Security . | . . . . Peak Influence 161 | . 161 140 80 Initial 14 | . . 9 14 Average 40 | . 69 29 25 Influence Increases 1389 | . 506 461 422 Destroy 0b10 Robot/C 820 | . 280 300 240 Destroy 0b10 Robot/NC 45 | . 25 15 5 Destroy Leader 218 | . 62 66 90 Successful Hack 11 | . . 11 . Disable Machine 60 | . 30 30 . Destroy Structure 85 | . 34 39 12 Lose Combat Pursuer 150 | . 75 . 75 Influence Decreases 1342 | . 483 448 411 Entered New Map 36 | . . 14 22 Time Decay 1076 | . 423 394 259 Lost Part 230 | . 60 40 130 Squads Dispatched 5 | . 3 . 2 Investigation 4 | . 2 . 2 Extermination . | . . . . Reinforcement 1 | . 1 . . Assault . | . . . . Garrison . | . . . . Intercept . | . . . . Searches Triggered . | . . . . Construction Impeded . | . . . . Haulers Reinforced . | . . . . Active Scanning Responses . | . . . . Cargo Convoy Interrupts . | . . . . Stealth | -11 -10 -9 -8 --------- Run | Yrd Mat Mat Mat Distress Signals 7 | . 3 4 . Communications Jammed . | . . . . Distress Signals . | . . . . Times Spotted 73 | . 26 27 20 Peak Tracking Total 6 | . 6 5 6 Tactical Retreats 9 | . 5 . 4 Traps | -11 -10 -9 -8 ------- Run | Yrd Mat Mat Mat Traps Triggered 2 | . 1 . 1 Indirectly . | . . . . Trap Hack Attempts . | . . . . Triggered . | . . . . Disarmed . | . . . . Reprogrammed . | . . . . Reused . | . . . . Traps Extracted . | . . . . Installed . | . . . . Triggered . | . . . . Machines | -11 -10 -9 -8 ---------- Run | Yrd Mat Mat Mat Machines Disabled 4 | . 2 2 . Max in Single Turn 2 | . 1 2 . Machines Repaired . | . . . . Machines Dismantled . | . . . . Machines Sabotaged . | . . . . Overloaded Fab Kills . | . . . . Hacking | -11 -10 -9 -8 --------- Run | Yrd Mat Mat Mat Machines Accessed 10 | . 2 6 2 Terminals 7 | . 2 4 1 Fabricators . | . . . . Repair Stations 1 | . . 1 . Recycling Units . | . . . . Scanalyzers 2 | . . 1 1 Garrison Access . | . . . . Total Hacks 19 | . 4 9 6 Successful 5 | . . 3 2 Failed 14 | . 4 6 4 Catastrophic 4 | . . 2 2 Database Lockouts . | . . . . Manual 14 | . 4 6 4 Terminals 15 | . 4 7 4 Fabricators . | . . . . Repair Stations 1 | . . 1 . Recycling Units . | . . . . Scanalyzers 3 | . . 1 2 Garrison Access . | . . . . Terminal Hacks 1 | . . 1 . Hauler Manifests 1 | . . 1 . Fabricator Hacks . | . . . . Repair Station Hacks 1 | . . 1 . Refit 1 | . . 1 . Recycling Unit Hacks . | . . . . Scanalyzer 3 | . . 1 2 Insert Component 2 | . . 1 1 Analyze 1 | . . . 1 Garrison Access Hacks . | . . . . Unauthorized Hacks . | . . . . Terminals . | . . . . Fabricators . | . . . . Repair Stations . | . . . . Recycling Units . | . . . . Scanalyzers . | . . . . Garrison Access . | . . . . Data Cores Recovered . | . . . . Used . | . . . . Hacking Detections 5 | . 1 3 1 Full Trace Events 2 | . . 1 1 Feedback Events . | . . . . Feedback Blocked . | . . . . Robot Schematics Acquired . | . . . . Robots Built . | . . . . Authchips . | . . . . Time . | . . . . Total Robot Build Rating . | . . . . Part Schematics Acquired 1 | . . . 1 Parts Built . | . . . . Authchips . | . . . . Time . | . . . . Total Part Build Rating . | . . . . Part Studies Acquired . | . . . . Parts Repaired . | . . . . Time . | . . . . Parts Recycled . | . . . . Recycled Matter . | . . . . Retrieved Matter . | . . . . Retrieved Components . | . . . . Parts Scanalyzed 1 | . . . 1 Part Schematics Acquired 1 | . . . 1 Parts Damaged . | . . . . Bothacking | -11 -10 -9 -8 ------------ Run | Yrd Mat Mat Mat Used RIF Installer . | . . . . Robots Hacked . | . . . . Non-combat . | . . . . Combat . | . . . . Robot Hacks Applied . | . . . . Relay Couplers Released . | . . . . Fabnet Peak Effective % . | . . . . Robots Rewired . | . . . . Allies Hacked . | . . . . Hacks Repelled . | . . . . Allies | -11 -10 -9 -8 -------- Run | Yrd Mat Mat Mat Total Allies . | . . . . Largest Group . | . . . . Highest-Rated Group . | . . . . Highest-Rated Ally . | . . . . Total Orders . | . . . . Ally Attacks . | . . . . Total Damage . | . . . . Kills . | . . . . Allies Corrupted . | . . . . Allies Melted . | . . . . Intel | -11 -10 -9 -8 ------- Run | Yrd Mat Mat Mat Active Infowar (turns) . | . . . . Robot Analysis Total . | . . . . Derelict Logs Recovered . | . . . . Drone Launches . | . . . . Drone Recoveries . | . . . . Exploration | -11 -10 -9 -8 ------------- Run | Yrd Mat Mat Mat Turns Passed 4060 | 79 1229 1886 866 Spaces Moved 1785 | 51 598 772 364 Core 352 | 13 259 75 5 Treads 812 | 38 229 360 185 Legs 621 | . 110 337 174 Wheels . | . . . . Hover . | . . . . Flight . | . . . . Fastest Speed 50 | 50 50 120 120 Average Speed 160 | 140 162 157 165 Slowest Speed 500 | 160 260 500 450 Overloaded Moves . | . . . . Propulsion Burnouts . | . . . . Robots Hopped . | . . . . Potential Cave-ins 12 | . . 12 . Cave-ins Triggered . | . . . . Exploration Rate (%) 32 | 3 49 51 27 Regions Visited 3 Branch Regions . Pre-discovered Areas . | . . . . Known Exits Taken . | . . . . Unknown Exits Taken 3 | 1 1 1 . Scrap Searched . | . . . . Spaces Dug 88 | . 16 60 12 Terrain Destroyed 129 | . 31 86 12 Melee 46 | . 7 27 12 Projectile . | . . . . AOE 83 | . 24 59 . Terrain Rammed . | . . . . Walls Destroyed . | . . . . Machines Disabled . | . . . . Actions | -11 -10 -9 -8 --------- Run | Yrd Mat Mat Mat Total 2609 | 56 768 1282 503 Wait 425 | . 77 336 12 Move 1782 | 50 597 771 364 Hop . | . . . . Pick Up 34 | 1 8 13 12 Fast Attach 31 | 5 7 8 11 Attach 24 | . 7 8 9 Detach 10 | . 2 6 2 Swap 1 | . . 1 . Drop 15 | . 3 7 5 Fire 116 | . 30 70 16 Melee 170 | . 36 62 72 Ram . | . . . . Kick . | . . . . Crush 1 | . 1 . . Escape Stasis . | . . . . Rewire . | . . . . Trap . | . . . . Miscellaneous . | . . . . Route ------- -11/Scrapyard -10/Materials (discovered 2 exits: *Mat / [*Min]) -9/Materials (discovered 2 exits: *Mat x2) -8/Materials (discovered 1 exit: [*Fac]) History --------- Turn | Location | Event 16 | -11/Scrapyard | Discovered new exit (range 15) 80 | -11/Scrapyard | Entered Materials 309 | -10/Materials | Build established: Mutant 361 | -10/Materials | Discovered new exit (range 7) 590 | -10/Materials | Core integrity fell below 50% 618 | -10/Materials | Lost 3 parts (2n1u) 706 | -10/Materials | Discovered new exit (range 5) 844 | -10/Materials | Released all parts (5) 1309 | -10/Materials | Entered another Materials area 1309 | -9/Materials | Evolved 2 slots: Propulsion x1, Utility x1 1558 | -9/Materials | Destroyed 7 combat bots 2286 | -9/Materials | Discovered new exit (range 15) 2539 | -9/Materials | Lost 4 parts (1p3n) 2963 | -9/Materials | Core integrity fell below 50% 3012 | -9/Materials | Discovered new exit (range 16) 3195 | -9/Materials | Entered another Materials area 3195 | -8/Materials | Evolved 2 slots: Propulsion x1, Utility x1 3390 | -8/Materials | Lost 4 parts (3n1u) 3587 | -8/Materials | Core integrity fell below 50% 3601 | -8/Materials | Lost 5 parts (1p2n2w) 3700 | -8/Materials | Discovered new exit (range 16) 3966 | -8/Materials | Core integrity fell below 20% 3990 | -8/Materials | Lost 7 parts (1p2n2u2w) 4061 | -8/Materials | Destroyed by G-47 Trooper with Particle Gun Last Messages --------------- G-47 Trooper destroyed. K-01 Serf collects debris. Arm. Treads destroyed. 31:: IPD 0=KPDBATYW/HCWAN>A:<5 O6OBP>G3L Critical hit (Burn: +37). K-01 Serf collects debris. Critical hit (Burn: +37). G-47 Trooper destroyed. Acquired Lgt. Nuclear Core. System corrupted: Energy discharge (-56). K-01 Serf collects debris. Destroyed Particle Gun. K-01 Serf collects debris. Lrg. Storage Unit destroyed. G-47 Trooper Aluminum Leg severed. Arm. Treads destroyed. Acquired Aluminum Leg. Lgt. Nuclear Core destroyed. Acquired Aluminum Leg. Destroyed Particle Gun. Map ----- +----------------------------------------------------+ | ????????????????????########?????????????????????? | | ????????????????????# #?????????????????????? | | ????????????????????# """ #??????##########?????? | | ????????????????????# "Y" ######## #?????? | | ????????????????????# " " # + // #####?? | | ????????????????????# # ##### / # #?? | | ????????????????????# + #???# / # #?? | | ??????????????????########## #???# # #?? | | ??????????????????# # #???# """ + #?? | | ??????????????????# # #???# """ # #?? | | ####??????????????# # #???# """ ! # #?? | | #??????????????# # #???# # #?? | | ####???????????# [# #?############ #?? | | " # #########???# " " # #? """ #?????# #?? | | " # # #???# """ # # """ #?????# #?? | | " + + #??## # # """ #?????# #?? | | # # #??## # + #?????# ?? | | #### #################+#### # [ #?????# ?? | | ??# ##### ##### ### #/ #?????# ?? | | ??# " #?######?????######? | | ??# #??????????????????? | | ??# ##### ##### ######??????????????????? | | ??### #######+######## ###########??????????????? | | ????# ###! * / %#?#=g#== "" #??????????????? | | ????# ### !% % ##?#[%gr T" #??????????????? | | ????# ### """ "" #??# *#@= #??????????????? | | ????# #?# """ " " #??# # #??????????????? | | ????# ### """ """ #??# ###########??????????????? | | ????# ### #??# #????????????????????????? | | ????# ### ""T"" #??# #????????????????????????? | | ????# #?# """"" #??# #????????????????????????? | | ###?# #############??# #????????????????????????? | | # ### #????????????# #???#######??????????????? | | # #????????????# *#?? # ???????????? | | # ############## %#? + ????????????? | | ""[+ # ## # #??????????????? | | Y"%# # ## # #??????????????? | | "" # # ## + #??????????????? | | # # ## %# #??????????????? | | ##### # ## # #??????????????? | | ????# # ### ##? #??????????????? | | ????# # ### #??#########??????????????? | | #???# + "# #?????????????????????????? | | !##?# # ### #?????????????????????????? | | !#?# ######/###?# #?????????????????????????? | | ### ##???# #???# #?????????????????????????? | | ## ##### ##### #?????????????????????????? | | ^ #?????????????????????????? | | ^^ #?????????????????????????? | | % ^ = #?????????????????????????? | +----------------------------------------------------+ Best States ------------- Heat Dissipation 55 Energy Generation 14 Energy Capacity 250 Matter Stores 300 Matter Capacity 300 Sight Range 16 Terrain Scan Density 10 Armor Coverage 300 Evasion (%) 55 Recoil Reduction 4 Item Schematics ----------------- Cld. Ion Engine | -8/Materials | Scanalyzed Robot Schematics ------------------ None Fabricated ------------ Nothing Repaired ---------- Nothing Studied --------- None Alien Tech Used ----------------- None Achievements -------------- Fitting Room Live, Flee, And Rebuild Challenges ------------ None Game ------ Seed TripodJammingWarhead Manual? 0 Play Time 00:55:21 Cumulative 30.4 hours Start 2026.03.21 @ 17:28:54 End 2026.03.21 @ 18:57:29 Sessions 1 Manual Loads 0 Difficulty Rogue Special Mode None Game No. 82 Rogue 80 Adventurer 2 Explorer 0 Win Type - Total 0 Types 0/0/0/0/0/0/0/0/0/0 Lore% 7 Gallery% 19 Achievement% 17 Wizard Run 0 Options --------- Layout 1 ASCII 0 Keyboard 1 Movement Numpad Keybinds 0 Fullscreen 2 Font 32/SmallcapsGlow Map View 50x35 Zoom Use 0% Tactical HUD 0 Map Filters NONE Filters NONE Steam 1 RUN: dd8985c3-a08b-4ec4-abcc-7237fe98cf25